[Event "Late-Titled-Tuesday-Blitz-June-25-2024"]
[Site "Chess.com"]
[Date "2024.06.25"]
[Round "4"]
[White "Aswathchess"]
[Black "HalfIsCrayfish"]
[Result "1-0"]
[WhiteElo "2775"]
[BlackElo "2563"]
[TimeControl "180+1"]
[EndTime "14:32:42 PDT"]
[Termination "Aswathchess won by resignation"]

1. a3 {[%clk 0:02:58.7]} 1... g6 {[%clk 0:02:57]} 2. g3 {[%clk 0:02:58]} 2...
Bg7 {[%clk 0:02:57.2]} 3. Bg2 {[%clk 0:02:58.1]} 3... d5 {[%clk 0:02:57.4]} 4.
Nf3 {[%clk 0:02:58.5]} 4... Nf6 {[%clk 0:02:57.3]} 5. O-O {[%clk 0:02:58.5]}
5... O-O {[%clk 0:02:58]} 6. d4 {[%clk 0:02:58.6]} 6... b6 {[%clk 0:02:57]} 7.
c4 {[%clk 0:02:58.6]} 7... Bb7 {[%clk 0:02:54.5]} 8. cxd5 {[%clk 0:02:58.9]}
8... Nxd5 {[%clk 0:02:50.4]} 9. e4 {[%clk 0:02:58.8]} 9... Nf6 {[%clk
0:02:50.7]} 10. e5 {[%clk 0:02:58.5]} 10... Nd5 {[%clk 0:02:49.8]} 11. h4 {[%clk
0:02:57.8]} 11... Nd7 {[%clk 0:02:43]} 12. h5 {[%clk 0:02:56.7]} 12... c5 {[%clk
0:02:43]} 13. h6 {[%clk 0:02:51.1]} 13... Bh8 {[%clk 0:02:42.8]} 14. e6 {[%clk
0:02:49.2]} 14... fxe6 {[%clk 0:02:27.1]} 15. Ng5 {[%clk 0:02:49]} 15... cxd4
{[%clk 0:01:50.1]} 16. Nxe6 {[%clk 0:02:46.6]} 16... Qb8 {[%clk 0:01:50.7]} 17.
Nxf8 {[%clk 0:02:41.4]} 17... Nxf8 {[%clk 0:01:50.5]} 18. Re1 {[%clk 0:02:33.1]}
18... e5 {[%clk 0:01:48.7]} 19. Nc3 {[%clk 0:02:30.4]} 19... Nxc3 {[%clk
0:01:44.5]} 20. Qb3+ {[%clk 0:02:26.4]} 1-0

[Event "Late-Titled-Tuesday-Blitz-June-25-2024"]
[Site "Chess.com"]
[Date "2024.06.25"]
[Round "4"]
[White "AthanasiusLefebvre"]
[Black "scrambleyourbrain"]
[Result "0-1"]
[WhiteElo "2060"]
[BlackElo "2386"]
[TimeControl "180+1"]
[EndTime "14:33:36 PDT"]
[Termination "scrambleyourbrain won by resignation"]

1. d3 {[%clk 0:03:00.9]} 1... Nf6 {[%clk 0:02:59.9]} 2. Nf3 {[%clk 0:03:00.9]}
2... d5 {[%clk 0:03:00]} 3. g3 {[%clk 0:03:01.4]} 3... g6 {[%clk 0:03:00]} 4.
Bg2 {[%clk 0:03:01.7]} 4... Bg7 {[%clk 0:03:00.7]} 5. O-O {[%clk 0:03:02]} 5...
O-O {[%clk 0:03:01.4]} 6. c4 {[%clk 0:03:02.3]} 6... c6 {[%clk 0:03:01.9]} 7.
Nc3 {[%clk 0:03:02.5]} 7... Bg4 {[%clk 0:03:00.8]} 8. h3 {[%clk 0:03:01.8]} 8...
Bxf3 {[%clk 0:03:00.6]} 9. Bxf3 {[%clk 0:03:01.9]} 9... d4 {[%clk 0:03:00.2]}
10. Na4 {[%clk 0:03:01.5]} 10... Nbd7 {[%clk 0:02:59.7]} 11. Rb1 {[%clk
0:02:58.1]} 11... Rc8 {[%clk 0:02:58.1]} 12. b4 {[%clk 0:02:56.4]} 12... Ne5
{[%clk 0:02:53.7]} 13. Bg2 {[%clk 0:02:56]} 13... b5 {[%clk 0:02:50.6]} 14. cxb5
{[%clk 0:02:53]} 14... cxb5 {[%clk 0:02:50.9]} 15. Nc5 {[%clk 0:02:52.2]} 15...
Qb6 {[%clk 0:02:49.7]} 16. a4 {[%clk 0:02:34.6]} 16... a5 {[%clk 0:02:45.1]} 17.
axb5 {[%clk 0:02:30.7]} 17... axb4 {[%clk 0:02:45.2]} 18. Na4 {[%clk 0:02:30.4]}
18... Qxb5 {[%clk 0:02:45.1]} 19. Bd2 {[%clk 0:02:21.5]} 19... Nc6 {[%clk
0:02:27.3]} 20. Bxc6 {[%clk 0:02:08.7]} 20... Qxc6 {[%clk 0:02:26.5]} 21. Rxb4
{[%clk 0:02:08.6]} 21... Nd5 {[%clk 0:02:25.4]} 22. Rc4 {[%clk 0:02:05.7]} 22...
Qe6 {[%clk 0:02:25.4]} 23. Nb2 {[%clk 0:01:56.1]} 23... Nc3 {[%clk 0:02:19.8]}
24. Bxc3 {[%clk 0:01:54]} 24... dxc3 {[%clk 0:02:20.2]} 25. Rxc8 {[%clk
0:01:53.7]} 25... Rxc8 {[%clk 0:02:19.6]} 26. Nc4 {[%clk 0:01:54.1]} 26... Qxh3
{[%clk 0:02:19.8]} 27. Qc2 {[%clk 0:01:52.2]} 27... Rc5 {[%clk 0:02:18.8]} 0-1

[Event "Late-Titled-Tuesday-Blitz-June-25-2024"]
[Site "Chess.com"]
[Date "2024.06.25"]
[Round "4"]
[White "HeroWilczek"]
[Black "Sacbutt"]
[Result "1-0"]
[WhiteElo "2466"]
[BlackElo "2242"]
[TimeControl "180+1"]
[EndTime "14:33:45 PDT"]
[Termination "HeroWilczek won by resignation"]

1. e4 {[%clk 0:02:57.6]} 1... e5 {[%clk 0:02:59.7]} 2. Nf3 {[%clk 0:02:57.6]}
2... Nc6 {[%clk 0:02:59.8]} 3. Bc4 {[%clk 0:02:58.1]} 3... Bc5 {[%clk
0:02:58.7]} 4. c3 {[%clk 0:02:57.6]} 4... Nf6 {[%clk 0:02:58]} 5. d4 {[%clk
0:02:57.7]} 5... exd4 {[%clk 0:02:56.8]} 6. e5 {[%clk 0:02:58.6]} 6... d5 {[%clk
0:02:53.1]} 7. Bb5 {[%clk 0:02:58.9]} 7... Ne4 {[%clk 0:02:41.7]} 8. cxd4 {[%clk
0:02:59.4]} 8... Bb4+ {[%clk 0:02:40.1]} 9. Bd2 {[%clk 0:02:59.9]} 9... Nxd2
{[%clk 0:02:39.4]} 10. Nbxd2 {[%clk 0:03:00.8]} 10... O-O {[%clk 0:02:36.5]} 11.
O-O {[%clk 0:03:00]} 11... Bf5 {[%clk 0:02:32.6]} 12. a3 {[%clk 0:02:56]} 12...
Bxd2 {[%clk 0:02:28.1]} 13. Nxd2 {[%clk 0:02:56.9]} 13... Ne7 {[%clk 0:02:27.5]}
14. Qf3 {[%clk 0:02:49.2]} 14... Bg6 {[%clk 0:02:21.5]} 15. Rac1 {[%clk
0:02:46]} 15... Nf5 {[%clk 0:02:12]} 16. Nb3 {[%clk 0:02:38.9]} 16... c6 {[%clk
0:02:02]} 17. Bd3 {[%clk 0:02:36.3]} 17... Qg5 {[%clk 0:02:00.3]} 18. Bxf5
{[%clk 0:02:33.5]} 18... Bxf5 {[%clk 0:01:59.6]} 19. Qg3 {[%clk 0:02:28.6]}
19... Qxg3 {[%clk 0:01:51.5]} 20. hxg3 {[%clk 0:02:29.5]} 20... Rac8 {[%clk
0:01:47.8]} 21. Rc3 {[%clk 0:02:25.9]} 21... f6 {[%clk 0:01:46.4]} 22. exf6
{[%clk 0:02:20.6]} 22... Rxf6 {[%clk 0:01:44.9]} 23. Re1 {[%clk 0:02:21.1]}
23... Re6 {[%clk 0:01:33.7]} 24. Rxe6 {[%clk 0:02:19.8]} 24... Bxe6 {[%clk
0:01:34.6]} 25. Nc5 {[%clk 0:02:20.2]} 25... Kf7 {[%clk 0:01:28.3]} 26. Nxb7
{[%clk 0:02:12.5]} 26... Rb8 {[%clk 0:01:26.6]} 27. Nc5 {[%clk 0:02:13.1]} 27...
Rxb2 {[%clk 0:01:26.4]} 28. Rf3+ {[%clk 0:02:13.2]} 1-0

[Event "Late-Titled-Tuesday-Blitz-June-25-2024"]
[Site "Chess.com"]
[Date "2024.06.25"]
[Round "4"]
[White "Arystanner"]
[Black "ValeriyGrinev"]
[Result "1-0"]
[WhiteElo "2812"]
[BlackElo "2587"]
[TimeControl "180+1"]
[EndTime "14:34:09 PDT"]
[Termination "Arystanner won by checkmate"]

1. e4 {[%clk 0:03:00.9]} 1... c6 {[%clk 0:02:59.7]} 2. Nf3 {[%clk 0:03:00.8]}
2... d5 {[%clk 0:02:57.4]} 3. exd5 {[%clk 0:03:01.7]} 3... cxd5 {[%clk
0:02:57.3]} 4. d4 {[%clk 0:03:02.6]} 4... Nf6 {[%clk 0:02:57.5]} 5. c3 {[%clk
0:03:03.2]} 5... Bg4 {[%clk 0:02:55]} 6. h3 {[%clk 0:03:03.5]} 6... Bh5 {[%clk
0:02:55.1]} 7. Qb3 {[%clk 0:03:03.7]} 7... Qc8 {[%clk 0:02:48.5]} 8. Ne5 {[%clk
0:03:00.3]} 8... Nbd7 {[%clk 0:02:47.7]} 9. Bf4 {[%clk 0:02:58.9]} 9... e6
{[%clk 0:02:46.9]} 10. Nd2 {[%clk 0:02:56.7]} 10... Nxe5 {[%clk 0:02:46.9]} 11.
dxe5 {[%clk 0:02:55.3]} 11... Nd7 {[%clk 0:02:47]} 12. c4 {[%clk 0:02:54.7]}
12... dxc4 {[%clk 0:02:42.9]} 13. Nxc4 {[%clk 0:02:53.8]} 13... Be7 {[%clk
0:02:38.9]} 14. Rc1 {[%clk 0:02:47.3]} 14... Nc5 {[%clk 0:02:19.5]} 15. Qb5+
{[%clk 0:02:47.2]} 15... Qc6 {[%clk 0:02:19.4]} 16. Nd6+ {[%clk 0:02:41.6]}
16... Bxd6 {[%clk 0:02:16.4]} 17. exd6 {[%clk 0:02:41.4]} 17... Qxb5 {[%clk
0:01:02.1]} 18. Bxb5+ {[%clk 0:02:39.7]} 18... Nd7 {[%clk 0:01:03]} 19. Rc7
{[%clk 0:02:39.5]} 19... Rd8 {[%clk 0:01:03.3]} 20. Rxb7 {[%clk 0:02:35.6]}
20... a6 {[%clk 0:01:03.7]} 21. Bc6 {[%clk 0:02:33.1]} 21... Bg6 {[%clk
0:00:58.4]} 22. Kd2 {[%clk 0:02:30.6]} 22... f6 {[%clk 0:00:42.9]} 23. Rc1
{[%clk 0:02:29.1]} 23... e5 {[%clk 0:00:38.1]} 24. Bxd7+ {[%clk 0:02:29.2]}
24... Rxd7 {[%clk 0:00:36.1]} 25. Rc8+ {[%clk 0:02:29.4]} 25... Rd8 {[%clk
0:00:34]} 26. Re7+ {[%clk 0:02:28.4]} 26... Kf8 {[%clk 0:00:33.5]} 27. Rxd8+
{[%clk 0:02:28.9]} 27... Be8 {[%clk 0:00:34.1]} 28. Rdxe8# {[%clk 0:02:29.3]}
1-0

[Event "Late-Titled-Tuesday-Blitz-June-25-2024"]
[Site "Chess.com"]
[Date "2024.06.25"]
[Round "4"]
[White "Boundless_Strike"]
[Black "harshu27"]
[Result "1-0"]
[WhiteElo "2725"]
[BlackElo "2543"]
[TimeControl "180+1"]
[EndTime "14:34:13 PDT"]
[Termination "Boundless_Strike won by resignation"]

1. d4 {[%clk 0:03:00.9]} 1... Nf6 {[%clk 0:02:59.4]} 2. Nc3 {[%clk 0:03:00.8]}
2... d5 {[%clk 0:02:58.9]} 3. e4 {[%clk 0:03:01.3]} 3... dxe4 {[%clk 0:02:56.1]}
4. f3 {[%clk 0:03:01.4]} 4... Bf5 {[%clk 0:02:55.2]} 5. fxe4 {[%clk 0:03:00.4]}
5... Nxe4 {[%clk 0:02:55]} 6. Qf3 {[%clk 0:03:00.9]} 6... Nxc3 {[%clk
0:02:52.1]} 7. bxc3 {[%clk 0:03:00.6]} 7... Bc8 {[%clk 0:02:37.9]} 8. Bc4 {[%clk
0:02:59.8]} 8... e6 {[%clk 0:02:36.8]} 9. Nh3 {[%clk 0:02:59.4]} 9... Nd7 {[%clk
0:02:33.8]} 10. O-O {[%clk 0:02:54.6]} 10... Nf6 {[%clk 0:02:33.4]} 11. Bg5
{[%clk 0:02:34.3]} 11... Be7 {[%clk 0:02:31.2]} 12. Nf4 {[%clk 0:02:34.3]} 12...
c6 {[%clk 0:02:27.4]} 13. Nh5 {[%clk 0:02:28.8]} 13... b5 {[%clk 0:02:10]} 14.
Nxg7+ {[%clk 0:02:15.5]} 14... Kd7 {[%clk 0:02:05.7]} 15. Bxe6+ {[%clk
0:01:43.8]} 15... fxe6 {[%clk 0:02:02.2]} 16. Nxe6 {[%clk 0:01:43.9]} 16... Kxe6
{[%clk 0:01:53.3]} 17. Qxc6+ {[%clk 0:01:43.3]} 17... Kf7 {[%clk 0:01:35.4]} 18.
Qxa8 {[%clk 0:01:39.6]} 18... Be6 {[%clk 0:01:32.9]} 19. Qxa7 {[%clk 0:01:34.9]}
19... Qa8 {[%clk 0:01:21.4]} 20. Rxf6+ {[%clk 0:01:32.8]} 20... Kg7 {[%clk
0:01:11.4]} 21. Qxe7+ {[%clk 0:01:32]} 1-0

[Event "Late-Titled-Tuesday-Blitz-June-25-2024"]
[Site "Chess.com"]
[Date "2024.06.25"]
[Round "4"]
[White "DanylaBagrov"]
[Black "JSPrepz"]
[Result "0-1"]
[WhiteElo "2589"]
[BlackElo "2819"]
[TimeControl "180+1"]
[EndTime "14:34:17 PDT"]
[Termination "JSPrepz won by resignation"]

1. e4 {[%clk 0:03:00.9]} 1... e5 {[%clk 0:02:59.9]} 2. Nf3 {[%clk 0:03:00.9]}
2... Nc6 {[%clk 0:03:00.3]} 3. d3 {[%clk 0:03:01.6]} 3... Nf6 {[%clk 0:03:00.3]}
4. Be2 {[%clk 0:03:01.4]} 4... d5 {[%clk 0:02:59.2]} 5. Nbd2 {[%clk 0:02:58.7]}
5... Rg8 {[%clk 0:02:55.6]} 6. c3 {[%clk 0:02:52.3]} 6... g5 {[%clk 0:02:52.1]}
7. h3 {[%clk 0:02:52.5]} 7... h5 {[%clk 0:02:51.3]} 8. exd5 {[%clk 0:02:39.4]}
8... Nxd5 {[%clk 0:02:50.6]} 9. Ne4 {[%clk 0:02:39.8]} 9... g4 {[%clk
0:02:51.1]} 10. hxg4 {[%clk 0:02:34.2]} 10... hxg4 {[%clk 0:02:52]} 11. Nh4
{[%clk 0:02:03.9]} 11... f5 {[%clk 0:02:49.9]} 12. Ng3 {[%clk 0:01:53.4]} 12...
Qf6 {[%clk 0:02:48.3]} 13. Qb3 {[%clk 0:01:42.6]} 13... Nce7 {[%clk 0:02:34.6]}
14. Ne4 {[%clk 0:01:24.1]} 14... fxe4 {[%clk 0:02:31.7]} 15. dxe4 {[%clk
0:01:25]} 15... Nb6 {[%clk 0:02:30.4]} 16. Be3 {[%clk 0:01:11.6]} 16... Be6
{[%clk 0:02:29.7]} 17. Qc2 {[%clk 0:01:09.2]} 17... O-O-O {[%clk 0:02:29.4]} 18.
g3 {[%clk 0:01:08]} 18... Rh8 {[%clk 0:02:25.2]} 19. a4 {[%clk 0:01:05.6]} 19...
Nc4 {[%clk 0:02:23.2]} 20. Bxa7 {[%clk 0:00:59.4]} 20... Nc6 {[%clk 0:02:21.9]}
21. Bxc4 {[%clk 0:00:45.3]} 21... Bxc4 {[%clk 0:02:20.7]} 22. Be3 {[%clk
0:00:45.9]} 22... Nb4 {[%clk 0:02:05.8]} 0-1

[Event "Late-Titled-Tuesday-Blitz-June-25-2024"]
[Site "Chess.com"]
[Date "2024.06.25"]
[Round "4"]
[White "N_I_Chess"]
[Black "corvachesky"]
[Result "1-0"]
[WhiteElo "2271"]
[BlackElo "2473"]
[TimeControl "180+1"]
[EndTime "14:34:24 PDT"]
[Termination "N_I_Chess won by checkmate"]

1. d4 {[%clk 0:02:50.3]} 1... d5 {[%clk 0:02:58.3]} 2. c4 {[%clk 0:02:50.8]}
2... e6 {[%clk 0:02:58.3]} 3. Nc3 {[%clk 0:02:51.2]} 3... Nf6 {[%clk 0:02:58.9]}
4. cxd5 {[%clk 0:02:50.1]} 4... exd5 {[%clk 0:02:58.8]} 5. Bg5 {[%clk
0:02:49.7]} 5... Be7 {[%clk 0:02:59.2]} 6. Qc2 {[%clk 0:02:49.9]} 6... c6 {[%clk
0:02:56.5]} 7. e3 {[%clk 0:02:49.7]} 7... Nbd7 {[%clk 0:02:56.5]} 8. Bd3 {[%clk
0:02:50.2]} 8... h6 {[%clk 0:02:56.6]} 9. Bh4 {[%clk 0:02:50.2]} 9... Nh5 {[%clk
0:02:54.9]} 10. Bxe7 {[%clk 0:02:48.8]} 10... Qxe7 {[%clk 0:02:55.8]} 11. Nge2
{[%clk 0:02:48.4]} 11... Nb6 {[%clk 0:02:52.7]} 12. O-O {[%clk 0:02:44.1]} 12...
O-O {[%clk 0:02:51.6]} 13. Rae1 {[%clk 0:02:43.6]} 13... Bd7 {[%clk 0:02:50.5]}
14. Kh1 {[%clk 0:02:41.9]} 14... f5 {[%clk 0:02:44.5]} 15. Ng1 {[%clk
0:02:31.2]} 15... Rae8 {[%clk 0:02:43.2]} 16. f4 {[%clk 0:02:27.2]} 16... Qh4
{[%clk 0:02:36.9]} 17. Nf3 {[%clk 0:02:22.8]} 17... Qe7 {[%clk 0:02:26]} 18. Ne5
{[%clk 0:02:09.5]} 18... Rf6 {[%clk 0:02:19.3]} 19. Qe2 {[%clk 0:02:04.4]} 19...
g6 {[%clk 0:02:12]} 20. Nxg6 {[%clk 0:02:02.9]} 20... Rxg6 {[%clk 0:02:10.8]}
21. Qxh5 {[%clk 0:02:02.1]} 21... Qf7 {[%clk 0:02:08.8]} 22. Nb1 {[%clk
0:01:21.9]} 22... Nc8 {[%clk 0:02:04.2]} 23. Nd2 {[%clk 0:01:20.2]} 23... Nd6
{[%clk 0:02:04.6]} 24. Nf3 {[%clk 0:01:20.9]} 24... Qg7 {[%clk 0:02:00.2]} 25.
Ne5 {[%clk 0:01:12.8]} 25... Rf6 {[%clk 0:01:56.5]} 26. Rf3 {[%clk 0:01:09.5]}
26... Kh8 {[%clk 0:01:52.1]} 27. Rg3 {[%clk 0:01:06.1]} 27... Qe7 {[%clk
0:01:51]} 28. Ng6+ {[%clk 0:01:05.1]} 28... Rxg6 {[%clk 0:01:50.8]} 29. Rxg6
{[%clk 0:01:04.5]} 29... Kh7 {[%clk 0:01:49.5]} 30. Qxh6# {[%clk 0:01:03.9]} 1-0

[Event "Late-Titled-Tuesday-Blitz-June-25-2024"]
[Site "Chess.com"]
[Date "2024.06.25"]
[Round "4"]
[White "Gangster-accountant01"]
[Black "Bryanl106"]
[Result "1-0"]
[WhiteElo "2569"]
[BlackElo "2733"]
[TimeControl "180+1"]
[EndTime "14:34:46 PDT"]
[Termination "Gangster-accountant01 won by resignation"]

1. c4 {[%clk 0:02:49.5]} 1... Nf6 {[%clk 0:02:59.4]} 2. Nc3 {[%clk 0:02:47.7]}
2... g6 {[%clk 0:02:57.3]} 3. e4 {[%clk 0:02:46.8]} 3... d6 {[%clk 0:02:57.5]}
4. g3 {[%clk 0:02:44.3]} 4... c5 {[%clk 0:02:56.8]} 5. Bg2 {[%clk 0:02:44.6]}
5... Bg7 {[%clk 0:02:56.8]} 6. Nge2 {[%clk 0:02:44.5]} 6... O-O {[%clk
0:02:57.4]} 7. O-O {[%clk 0:02:43.7]} 7... Nc6 {[%clk 0:02:57.2]} 8. d3 {[%clk
0:02:43.5]} 8... Bd7 {[%clk 0:02:56.8]} 9. h3 {[%clk 0:02:42.3]} 9... a6 {[%clk
0:02:56.6]} 10. Be3 {[%clk 0:02:41.8]} 10... Rb8 {[%clk 0:02:54.3]} 11. a4
{[%clk 0:02:41.8]} 11... e5 {[%clk 0:02:24]} 12. f4 {[%clk 0:02:25.4]} 12... Nd4
{[%clk 0:02:22.3]} 13. fxe5 {[%clk 0:02:23.4]} 13... dxe5 {[%clk 0:02:21.4]} 14.
Nd5 {[%clk 0:02:23.5]} 14... Nxd5 {[%clk 0:02:21.2]} 15. cxd5 {[%clk 0:02:21.8]}
15... b5 {[%clk 0:02:21.3]} 16. axb5 {[%clk 0:02:21]} 16... axb5 {[%clk
0:02:22.2]} 17. Rc1 {[%clk 0:02:20.1]} 17... Qb6 {[%clk 0:02:20.7]} 18. Nxd4
{[%clk 0:02:18.9]} 18... cxd4 {[%clk 0:02:18.3]} 19. Bg5 {[%clk 0:02:17.7]}
19... f6 {[%clk 0:02:11.9]} 20. Bd2 {[%clk 0:02:15.6]} 20... Rfc8 {[%clk
0:02:11.2]} 21. Qb3 {[%clk 0:02:15.3]} 21... h5 {[%clk 0:01:59.3]} 22. d6+
{[%clk 0:01:57.1]} 22... Kh7 {[%clk 0:01:58.2]} 23. Bb4 {[%clk 0:01:54.8]} 23...
Rxc1 {[%clk 0:01:31.2]} 24. Rxc1 {[%clk 0:01:53.2]} 24... Rc8 {[%clk 0:01:32.1]}
25. Rxc8 {[%clk 0:01:27.2]} 25... Bxc8 {[%clk 0:01:31.6]} 26. Qf7 {[%clk
0:00:59.8]} 26... Qb7 {[%clk 0:01:28.9]} 27. Qxb7 {[%clk 0:00:57.8]} 1-0

[Event "Late-Titled-Tuesday-Blitz-June-25-2024"]
[Site "Chess.com"]
[Date "2024.06.25"]
[Round "4"]
[White "szachmistrz2500"]
[Black "hoshiboshi"]
[Result "1-0"]
[WhiteElo "2461"]
[BlackElo "2232"]
[TimeControl "180+1"]
[EndTime "14:34:47 PDT"]
[Termination "szachmistrz2500 won by resignation"]

1. e4 {[%clk 0:03:00.9]} 1... c5 {[%clk 0:02:54.8]} 2. Nf3 {[%clk 0:03:00]} 2...
d6 {[%clk 0:02:54.5]} 3. d4 {[%clk 0:02:59.9]} 3... cxd4 {[%clk 0:02:55.4]} 4.
Nxd4 {[%clk 0:02:59.9]} 4... Nf6 {[%clk 0:02:56]} 5. Nc3 {[%clk 0:03:00]} 5...
a6 {[%clk 0:02:56.6]} 6. Bg5 {[%clk 0:02:58.9]} 6... e6 {[%clk 0:02:56.4]} 7. f4
{[%clk 0:02:59]} 7... Be7 {[%clk 0:02:56.4]} 8. Qf3 {[%clk 0:02:58.4]} 8... Qc7
{[%clk 0:02:56.5]} 9. O-O-O {[%clk 0:02:57.9]} 9... Nbd7 {[%clk 0:02:56.8]} 10.
g4 {[%clk 0:02:58.1]} 10... h6 {[%clk 0:02:54]} 11. Bxf6 {[%clk 0:02:56.5]}
11... Bxf6 {[%clk 0:02:54.7]} 12. h4 {[%clk 0:02:55.8]} 12... Nb6 {[%clk
0:02:53.6]} 13. g5 {[%clk 0:02:55.5]} 13... Bxd4 {[%clk 0:02:49.6]} 14. Rxd4
{[%clk 0:02:54.6]} 14... Qc5 {[%clk 0:02:50]} 15. Rd1 {[%clk 0:02:49]} 15... Bd7
{[%clk 0:02:37.7]} 16. Be2 {[%clk 0:02:32]} 16... O-O-O {[%clk 0:02:33.4]} 17.
Qd3 {[%clk 0:02:25.9]} 17... Bc6 {[%clk 0:02:22.7]} 18. g6 {[%clk 0:02:25.9]}
18... f5 {[%clk 0:01:36.7]} 19. Rhe1 {[%clk 0:02:24.9]} 19... Rhf8 {[%clk
0:01:28.5]} 20. exf5 {[%clk 0:02:19.3]} 20... exf5 {[%clk 0:01:08.1]} 21. Bf3
{[%clk 0:02:14.8]} 21... Nc4 {[%clk 0:01:03.6]} 22. Bxc6 {[%clk 0:02:09.7]}
22... bxc6 {[%clk 0:00:53.2]} 23. Na4 {[%clk 0:02:01.7]} 23... Qb5 {[%clk
0:00:11.9]} 24. Qxc4 {[%clk 0:02:01.4]} 1-0

[Event "Late-Titled-Tuesday-Blitz-June-25-2024"]
[Site "Chess.com"]
[Date "2024.06.25"]
[Round "4"]
[White "Oleksandr_Bortnyk"]
[Black "carokannlover213"]
[Result "1-0"]
[WhiteElo "3063"]
[BlackElo "2668"]
[TimeControl "180+1"]
[EndTime "14:34:50 PDT"]
[Termination "Oleksandr_Bortnyk won by resignation"]

1. d4 {[%clk 0:03:00.9]} 1... e6 {[%clk 0:02:57.1]} 2. Nc3 {[%clk 0:03:01]} 2...
Nf6 {[%clk 0:02:56.9]} 3. Bf4 {[%clk 0:02:59.9]} 3... Bb4 {[%clk 0:02:56.5]} 4.
e3 {[%clk 0:03:00.4]} 4... Nd5 {[%clk 0:02:55.9]} 5. Ne2 {[%clk 0:03:00.5]} 5...
c5 {[%clk 0:02:55.8]} 6. a3 {[%clk 0:02:51.5]} 6... Nxf4 {[%clk 0:02:50.5]} 7.
Nxf4 {[%clk 0:02:51]} 7... Ba5 {[%clk 0:02:50]} 8. dxc5 {[%clk 0:02:50.2]} 8...
Bxc3+ {[%clk 0:02:46.1]} 9. bxc3 {[%clk 0:02:51.1]} 9... Qa5 {[%clk 0:02:45.7]}
10. Qd4 {[%clk 0:02:50.6]} 10... f6 {[%clk 0:02:29.1]} 11. Qb4 {[%clk
0:02:39.5]} 11... Qc7 {[%clk 0:02:27.8]} 12. Bb5 {[%clk 0:02:38]} 12... O-O
{[%clk 0:02:22.2]} 13. O-O {[%clk 0:02:35.8]} 13... Na6 {[%clk 0:01:56.4]} 14.
Bxa6 {[%clk 0:02:31.2]} 14... bxa6 {[%clk 0:01:57.3]} 15. Rab1 {[%clk
0:02:31.9]} 15... a5 {[%clk 0:01:54.1]} 16. Qb5 {[%clk 0:02:29.8]} 16... Qc6
{[%clk 0:01:33.6]} 17. Rfd1 {[%clk 0:02:26.2]} 17... Qxb5 {[%clk 0:01:08.8]} 18.
Rxb5 {[%clk 0:02:27.1]} 18... Ba6 {[%clk 0:01:09.5]} 19. Rxa5 {[%clk 0:02:27]}
19... Bb7 {[%clk 0:01:10.1]} 20. Rxd7 {[%clk 0:02:25.9]} 20... Rad8 {[%clk
0:01:08.2]} 21. Rd6 {[%clk 0:02:15.9]} 21... Rxd6 {[%clk 0:00:47.8]} 22. cxd6
{[%clk 0:02:16.8]} 22... Rd8 {[%clk 0:00:47.9]} 23. Nxe6 {[%clk 0:02:16.2]}
23... Rxd6 {[%clk 0:00:48.4]} 24. Nd4 {[%clk 0:02:17.1]} 24... a6 {[%clk
0:00:43.7]} 25. Rc5 {[%clk 0:02:15.9]} 25... Rb6 {[%clk 0:00:43.2]} 26. f3
{[%clk 0:02:15.9]} 26... Rb1+ {[%clk 0:00:39]} 27. Kf2 {[%clk 0:02:16.2]} 27...
Ra1 {[%clk 0:00:39.9]} 28. c4 {[%clk 0:02:16.1]} 28... g5 {[%clk 0:00:24.8]} 29.
Rc7 {[%clk 0:02:15.1]} 29... Rb1 {[%clk 0:00:25.7]} 30. Nb3 {[%clk 0:02:13.4]}
30... Rb2 {[%clk 0:00:25.6]} 31. Rxb7 {[%clk 0:02:13.4]} 31... Rxc2+ {[%clk
0:00:26.5]} 32. Kg3 {[%clk 0:02:13]} 32... Rxc4 {[%clk 0:00:27.4]} 33. Rb6
{[%clk 0:02:11.4]} 33... Rc8 {[%clk 0:00:28.3]} 34. Rxa6 {[%clk 0:02:11.5]}
34... Rf8 {[%clk 0:00:28.9]} 35. Nd4 {[%clk 0:02:11.5]} 35... Kg7 {[%clk
0:00:29.8]} 36. Ne6+ {[%clk 0:02:12]} 36... Kg6 {[%clk 0:00:30.7]} 37. Nxf8+
{[%clk 0:02:12.9]} 37... Kf5 {[%clk 0:00:30.9]} 38. Re6 {[%clk 0:02:10.9]} 1-0

[Event "Late-Titled-Tuesday-Blitz-June-25-2024"]
[Site "Chess.com"]
[Date "2024.06.25"]
[Round "4"]
[White "gabduschew"]
[Black "GrotBchess"]
[Result "0-1"]
[WhiteElo "2395"]
[BlackElo "2605"]
[TimeControl "180+1"]
[EndTime "14:34:52 PDT"]
[Termination "GrotBchess won by resignation"]

1. e4 {[%clk 0:03:00.9]} 1... c5 {[%clk 0:02:58.5]} 2. Nf3 {[%clk 0:02:58.4]}
2... e6 {[%clk 0:02:58.8]} 3. d4 {[%clk 0:02:58]} 3... cxd4 {[%clk 0:02:59.4]}
4. Nxd4 {[%clk 0:02:58.8]} 4... Nc6 {[%clk 0:02:59.7]} 5. Nxc6 {[%clk
0:02:55.8]} 5... bxc6 {[%clk 0:02:58.9]} 6. c4 {[%clk 0:02:56.1]} 6... Nf6
{[%clk 0:02:58.3]} 7. Bd3 {[%clk 0:02:55.8]} 7... d5 {[%clk 0:02:57.6]} 8. cxd5
{[%clk 0:02:53.1]} 8... cxd5 {[%clk 0:02:58.5]} 9. e5 {[%clk 0:02:50.1]} 9...
Nd7 {[%clk 0:02:55.7]} 10. Bf4 {[%clk 0:02:35.3]} 10... Bb4+ {[%clk 0:02:46.3]}
11. Nd2 {[%clk 0:02:33.1]} 11... Qh4 {[%clk 0:02:37.2]} 12. g3 {[%clk
0:02:20.5]} 12... Qh3 {[%clk 0:02:28.8]} 13. Qa4 {[%clk 0:02:08.3]} 13... a5
{[%clk 0:02:20.1]} 14. a3 {[%clk 0:01:56.8]} 14... Bc5 {[%clk 0:02:15.1]} 15.
Rc1 {[%clk 0:01:10.6]} 15... O-O {[%clk 0:02:11.5]} 16. Bf1 {[%clk 0:01:05.4]}
16... Qf5 {[%clk 0:02:07.9]} 17. Bg2 {[%clk 0:01:05.3]} 17... Nxe5 {[%clk
0:02:01.1]} 18. Bxe5 {[%clk 0:00:46.9]} 18... Bxf2+ {[%clk 0:01:50.1]} 19. Ke2
{[%clk 0:00:36.7]} 19... Ba6+ {[%clk 0:01:47.2]} 20. Kd1 {[%clk 0:00:20.1]}
20... Qxe5 {[%clk 0:01:43.6]} 0-1